Cogmind - Beta 13 @@@ ROGUE MODE // 2024.04.24 @ 21:44:19 Player: skelll Result: Destroyed by CP-TZ6(R) with Subdweller Laser Performance ------------- Evolutions (0) 0 Regions Visited (2) 400 Robots Destroyed (14) 70 Value Destroyed (392) 392 Prototype IDs (0) 0 Alien Tech Used (0) 0 Bonus (0) 0 TOTAL SCORE: 862 Bonus ------- None Cogmind --------- Core Integrity 0/250 Matter 265/300 Energy 100/100 System Corruption 0% Temperature Cool (6) Movement Core (850) Ox16 Location -10/Subcaves Parts ------- > --- POWER (1) -------- (None) > --- PROPULSION (2) --- (None) > --- UTILITY (2) ------ High-capacity Storage Unit Power Shielding > --- WEAPON (2) ------- Subdweller Beam Cannon Light Assault Rifle > --- INVENTORY (20) --- Ion Engine Ion Engine Aluminum Leg Subdweller Monowheel Medium Battery (150) Core Shielding Power Shielding Subdweller Shrapnel Launcher Welding Torch Peak State ------------ > --- POWER ------------ Ion Engine > --- PROPULSION ------- Wheel Subdweller Monowheel > --- UTILITY ---------- High-capacity Storage Unit Power Shielding > --- WEAPON ----------- EM Pulse Gun Subdweller Shrapnel Launcher > --- INVENTORY -------- Ion Engine Ion Engine Aluminum Leg Subdweller Monowheel Medium Battery Core Shielding Power Shielding Light Assault Rifle Grenade Launcher Welding Torch [Rating: 10] Favorites ----------- Power Ion Engine Engine Ion Engine Propulsion Wheel Wheel Wheel Utility Power Shielding Storage High-capacity Storage Unit Protection Power Shielding Weapon Assault Rifle Energy Gun Small Laser Energy Cannon Subdweller Beam Cannon Ballistic Gun Assault Rifle Launcher Grenade Launcher Build | -11 -10 -10 ------- Run | Yrd Mat Sub Slots Evolved . | . . . Power . | . . . Propulsion . | . . . Utility . | . . . Weapon . | . . . Parts Attached 16 | 6 2 8 Power 1 | 1 . . Engine 1 | 1 . . Core . | . . . Reactor . | . . . Propulsion 4 | 2 . 2 Treads . | . . . Leg . | . . . Wheel 4 | 2 . 2 Hover . | . . . Flight . | . . . Utility 3 | 1 2 . Device . | . . . Storage 2 | 1 1 . Processor . | . . . Hackware . | . . . Protection 1 | . 1 . Artifact . | . . . Weapon 8 | 2 . 6 Energy Gun 2 | 1 . 1 Energy Cannon 1 | . . 1 Ballistic Gun 2 | 1 . 1 Ballistic Cannon . | . . . Launcher 3 | . . 3 Special Weapon . | . . . Impact Weapon . | . . . Slashing Weapon . | . . . Piercing Weapon . | . . . Special Melee Weapon . | . . . Unidentified Prototypes . | . . . Parts Lost 8 | . 1 7 Power 1 | . . 1 Propulsion 3 | . 1 2 Utility . | . . . Weapon 4 | . . 4 Highest Loss Streak 5 | . 1 5 To Critical Strikes . | . . . Average Slot Usage (%) 83 | . 94 73 Engine 10 | . 14 6 Wheel 17 | . 23 11 Storage 14 | . 14 14 Protection 13 | . 13 14 Energy Gun 9 | . 14 6 Energy Cannon 3 | . . 6 Ballistic Gun 13 | . 14 12 Naked Turns . | . . . Heaviest Build 50 | 13 49 50 Greatest Support 30 | 26 26 30 Greatest Overweight (x) 16 | 1 4 16 Average Overweight (x) 1 | . . 3 Largest Inventory Capacity 20 | 8 20 20 Average Capacity 16 | 7 13 20 Most Carried 11 | 3 10 11 Average Carried 8 | 1 7 9 Final Capacity 20 | 8 20 20 Final Carried 10 | 3 10 9 Class Distribution -------------------- 100% | Mutant Dominant Class ---------------- Mutant | -10/Materials Mutant | -10/Subcaves Resources | -11 -10 -10 ----------- Run | Yrd Mat Sub Matter Collected 433 | 236 102 95 Remotely . | . . . Salvage Created 379 | . 180 199 Parts 27 | . 13 14 Haulers Intercepted . | . . . Recyclers Shooed . | . . . Parts Field Recycled . | . . . Retrieved Matter . | . . . Parts Self-Destructed 7 | . . 7 Prevented . | . . . Kills | -11 -10 -10 ------- Run | Yrd Mat Sub Combat Hostiles Destroyed 14 | . 8 6 Guns 9 | . 8 1 AOE 5 | . . 5 Classes Destroyed 3 | . 2 1 Swarmer 5 | . 5 . Grunt 3 | . 3 . Subdweller 6 | . . 6 Best Kill Streak 4 | . 3 4 Combat Bots Only 4 | . 3 4 Max Kills in Single Turn 3 | . 1 3 Gunslinging . | . . . Exploded 3 | . . 3 Melee . | . . . Uniques/NPCs Destroyed . | . . . Combat | -11 -10 -10 -------- Run | Yrd Mat Sub Hostile Shots Fired 66 | . 35 31 Missed 19 | . 7 12 Damage Taken 851 | . 278 573 Core 252 | . 88 164 Absorbed by Shields . | . . . Redirected to Shielding 33 | . 3 30 Core Remaining (%) 100 | 100 . . Volleys Fired 41 | . 21 20 Largest 2 | . 2 2 Hottest 60 | . 60 60 Shots Fired 73 | . 42 31 Gun 67 | . 42 25 Cannon . | . . . Launcher 6 | . . 6 Special . | . . . Kinetic 34 | . 21 13 Thermal 23 | . 21 2 Explosive 6 | . . 6 Electromagnetic 10 | . . 10 Robot Hit Streak 13 | . 11 13 Robot Miss Streak 2 | . 2 2 Penetration Max . | . . . Secondary Targets 1 | . 1 . Max Gunslinging Chain 1 | . 1 . Shots Hit Robots 56 | . 31 25 Core Hits 24 | . 11 13 Critical Kills . | . . . Critical Parts Destroyed . | . . . Critical Strikes . | . . . Melee Attacks . | . . . Impact . | . . . Slashing . | . . . Piercing . | . . . Sneak Attacks . | . . . Combat Hostiles . | . . . Follow-up Attacks . | . . . Damage Inflicted 1020 | . 366 654 Guns 580 | . 366 214 Cannons . | . . . Explosions 440 | . . 440 Melee . | . . . Ramming . | . . . Kinetic 273 | . 182 91 Thermal 208 | . 184 24 Explosive 440 | . . 440 Electromagnetic 99 | . . 99 Impact . | . . . Slashing . | . . . Piercing . | . . . Highest Corruption . | . . . Average Corruption . | . . . Corruption Purged . | . . . Corruption Blocked . | . . . Overload Shots . | . . . Overflow Damage 7 | . . 7 Projectiles . | . . . Explosions 7 | . . 7 Melee . | . . . Knockbacks . | . . . Impact . | . . . Kinetic . | . . . Secondary . | . . . Self-Inflicted Damage 91 | . . 91 Shots 3 | . . 3 Rammed . | . . . Targets Rammed . | . . . Kicked . | . . . Crushed . | . . . Highest Temperature 265 | . 36 265 Average Temperature 45 | . 20 129 Received Heat Transfer 553 | . 114 439 Effects 1 | . . 1 Energy Bleed 1 | . . 1 Siege Activations . | . . . Robots Corrupted . | . . . Combat Hostiles . | . . . Parts Fried . | . . . Impact Corruptions . | . . . Robots Melted . | . . . Combat Hostiles . | . . . Parts Melted 3 | . 1 2 Heat Transferred 475 | . 425 50 Parts Sabotaged . | . . . Parts Stolen . | . . . Parts Stripped . | . . . Power Chain Reactions . | . . . Alert | -11 -10 -10 ------- Run | Yrd Mat Sub Peak Influence 186 | . 186 . Initial . | . . . Average 54 | . 61 . Maximum Alert Level . | . . . Low Security (%) 100 | 100 100 . Level 1 . | . . . Level 2 . | . . . Level 3 . | . . . Level 4 . | . . . Level 5 . | . . . High Security . | . . . Max Security . | . . . Squads Dispatched 1 | . 1 . Investigation . | . . . Extermination . | . . . Reinforcement 1 | . 1 . Assault . | . . . Garrison . | . . . Intercept . | . . . Searches Triggered . | . . . Construction Impeded . | . . . Haulers Reinforced . | . . . Active Scanning Responses . | . . . Cargo Convoy Interrupts . | . . . Stealth | -11 -10 -10 --------- Run | Yrd Mat Sub Distress Signals . | . . . Communications Jammed . | . . . Distress Signals . | . . . Times Spotted 20 | . 13 7 Peak Tracking Total 3 | . 3 3 Tactical Retreats . | . . . Traps | -11 -10 -10 ------- Run | Yrd Mat Sub Traps Triggered . | . . . Indirectly . | . . . Trap Hack Attempts . | . . . Triggered . | . . . Disarmed . | . . . Reprogrammed . | . . . Reused . | . . . Traps Extracted . | . . . Installed . | . . . Triggered . | . . . Machines | -11 -10 -10 ---------- Run | Yrd Mat Sub Machines Disabled . | . . . Max in Single Turn . | . . . Machines Repaired . | . . . Machines Dismantled . | . . . Machines Sabotaged . | . . . Overloaded Fab Kills . | . . . Hacking | -11 -10 -10 --------- Run | Yrd Mat Sub Machines Accessed 2 | . 2 . Terminals 2 | . 2 . Fabricators . | . . . Repair Stations . | . . . Recycling Units . | . . . Scanalyzers . | . . . Garrison Access . | . . . Total Hacks 5 | . 5 . Successful 1 | . 1 . Failed 4 | . 4 . Catastrophic 1 | . 1 . Database Lockouts . | . . . Manual . | . . . Terminals 5 | . 5 . Fabricators . | . . . Repair Stations . | . . . Recycling Units . | . . . Scanalyzers . | . . . Garrison Access . | . . . Terminal Hacks 1 | . 1 . Emergency Access Points 1 | . 1 . Fabricator Hacks . | . . . Repair Station Hacks . | . . . Recycling Unit Hacks . | . . . Scanalyzer . | . . . Garrison Access Hacks . | . . . Unauthorized Hacks . | . . . Terminals . | . . . Fabricators . | . . . Repair Stations . | . . . Recycling Units . | . . . Scanalyzers . | . . . Garrison Access . | . . . Data Cores Recovered . | . . . Used . | . . . Hacking Detections 2 | . 2 . Full Trace Events . | . . . Feedback Events . | . . . Feedback Blocked . | . . . Robot Schematics Acquired . | . . . Robots Built . | . . . Authchips . | . . . Time . | . . . Total Robot Build Rating . | . . . Part Schematics Acquired . | . . . Parts Built . | . . . Authchips . | . . . Time . | . . . Total Part Build Rating . | . . . Parts Repaired . | . . . Time . | . . . Parts Recycled . | . . . Recycled Matter . | . . . Retrieved Matter . | . . . Retrieved Components . | . . . Parts Scanalyzed . | . . . Part Schematics Acquired . | . . . Parts Damaged . | . . . Bothacking | -11 -10 -10 ------------ Run | Yrd Mat Sub Used RIF Installer . | . . . Robots Hacked . | . . . Non-combat . | . . . Combat . | . . . Robot Hacks Applied . | . . . Relay Couplers Released . | . . . Fabnet Peak Effective % . | . . . Robots Rewired . | . . . Allies Hacked . | . . . Hacks Repelled . | . . . Allies | -11 -10 -10 -------- Run | Yrd Mat Sub Total Allies . | . . . Largest Group . | . . . Highest-Rated Group . | . . . Highest-Rated Ally . | . . . Total Orders . | . . . Ally Attacks . | . . . Total Damage . | . . . Kills . | . . . Allies Corrupted . | . . . Allies Melted . | . . . Intel | -11 -10 -10 ------- Run | Yrd Mat Sub Robot Analysis Total . | . . . Derelict Logs Recovered 1 | . . 1 Drone Launches . | . . . Drone Recoveries . | . . . Exploration | -11 -10 -10 ------------- Run | Yrd Mat Sub Turns Passed 863 | 45 386 432 Spaces Moved 461 | 39 269 153 Core 31 | 5 . 26 Treads . | . . . Legs . | . . . Wheels 430 | 34 269 127 Hover . | . . . Flight . | . . . Fastest Speed 50 | 50 90 107 Average Speed 143 | 86 100 234 Slowest Speed 850 | 100 140 850 Overloaded Moves . | . . . Propulsion Burnouts . | . . . Robots Hopped . | . . . Cave-ins Triggered . | . . . Exploration Rate (%) 16 | 4 32 13 Regions Visited 2 Branch Regions 1 Pre-discovered Areas . | . . . Known Exits Taken . | . . . Unknown Exits Taken 2 | 1 1 . Scrap Searched 1 | . . 1 Spaces Dug . | . . . Terrain Destroyed 38 | . . 38 Melee . | . . . Projectile . | . . . AOE 38 | . . 38 Terrain Rammed . | . . . Walls Destroyed . | . . . Machines Disabled . | . . . Actions | -11 -10 -10 --------- Run | Yrd Mat Sub Total 592 | 47 342 203 Wait 60 | . 43 17 Move 459 | 38 268 153 Hop . | . . . Pick Up 12 | 3 7 2 Fast Attach 9 | 6 1 2 Attach 5 | . . 5 Detach 2 | . . 2 Swap 2 | . 1 1 Drop 2 | . 1 1 Fire 41 | . 21 20 Melee . | . . . Ram . | . . . Kick . | . . . Crush . | . . . Escape Stasis . | . . . Rewire . | . . . Trap . | . . . Miscellaneous . | . . . Route ------- -11/Scrapyard -10/Materials (discovered 2 exits: [*Mat] / [*Sub]) -10/Subcaves (discovered 1 exit: Mat) History --------- Turn | Location | Event 9 | -11/Scrapyard | Discovered new exit (range 16) 46 | -11/Scrapyard | Entered Materials 228 | -10/Materials | Discovered new exit (range 16) 309 | -10/Materials | Build established: Mutant 421 | -10/Materials | Discovered new exit (range 9) 432 | -10/Materials | Entered Subcaves 473 | -10/Subcaves | Core integrity fell below 50% 479 | -10/Subcaves | Ambushed by Subdweller buried in earth 482 | -10/Subcaves | Ambushed by Subdweller buried in earth 551 | -10/Subcaves | Identified exit to Materials 645 | -10/Subcaves | Core integrity fell below 20% 681 | -10/Subcaves | Lost 5 parts (1p2n2w) 864 | -10/Subcaves | Destroyed by CP-TZ6(R) with Subdweller Laser Last Messages --------------- 00521_ Dropped Grenade Launcher. 00521_ Acquired Grenade Launcher. 00533_ Subatomizers dissect the Sub. Power Source. 00533_ 12-7FM(u) builds Twisted Machinery. 00551_ Acquired derelict log, extracted data. 00639_ EM Pulse Gun destroyed. 00643_ Ion Engine destroyed. 00644_ Sub. Optics melted. 00644_ JY-XQM(R) destroyed. 00645_ Wheel destroyed. 00650_ KK-2YI(R) destroyed. 00650_ Sub. Monowheel destroyed. 00650_ Destroyed Sub. Monowheel. 00650_ Grenade Launcher destroyed. 00650_ Destroyed Grenade Launcher. 00652_ Acquired 10 matter. 00659_ Acquired 25 matter. 00673_ Acquired Sub. Beam Cannon. 00688_ The unstable cave ceiling collapses. Map ----- +----------------------------------------------------+ | ?????????????????????????????????????????????????? | | ?????????????????????????????????????????????????? | | ?????????????????????????????????????????????????? | | ?????????????????????????????????????????????????? | | ?????????????????????????????????????????????????? | | ?????????????????????????????????????????????????? | | ????? ??????????????????????????????????????????? | | ??? ?????????????????????????????????????????? | | ?? ????????????????????????????????????????? | | ?? ????????????????????#######?????????????? | | ? ????#####????###??## """"#?????????????? | | ?? ????# ###### ##?# """#??????????????? | | ?? ##### # # ### ####??????????????? | | ??? ###" ##?????????????????? | | ??????# "" ## #??????????????????? | | ???????# #"" ! ##??????????????????? | | ???????# ###""" #???????????????????? | | ???????## ### ##???????????????????? | | ???????#### ##?# # # #???????????????????? | | ?????### ?## ###??## # #???????????????????? | | ?????# ### #???### ## ###???#???????????????? | | ????## ##?## #####??? #???????????????? | | ????# ### #???### #???????????????? | | ????# ### R #### " #???????????????? | | ???## #?# #???????????????? | | ???# #### ## @ #??????????????? | | ???# ## ########## ## #??????????????? | | ???####?# #?????# ####??? ##??????????????? | | #?????#### #?????# #???????????????????????? | | ####??# ## #?????#### ##???????????????????????? | | ## #### #????????###????????????????????????? | | ### #???????????????????????????????????? | | #### #???????????????????????????????????? | | # ### ##???????????????????????????????????? | | ### ## #????????????????????????????????????? | | ?# ##????????????????????????????????????? | | ?## #?????????????????????????????????????? | | ??##### #?????????????????????????????????????? | | ?????? ###?????????????????????????????????????? | | ????? #???????????????????????????????????????? | | ????? ???????????????????????????????????????? | | ???? ??????????????????????????????????????? | | ??? ?????????????????????????????????????? | | ???# #?????????????????????????????????????? | | ???# ##?????????????????????????????????????? | | ???## ##??????????????????????????????????????? | | ????######???????????????????????????????????????? | | ?????????????????????????????????????????????????? | | ?????????????????????????????????????????????????? | | ?????????????????????????????????????????????????? | +----------------------------------------------------+ Best States ------------- Heat Dissipation 25 Energy Generation 10 Energy Capacity 250 Matter Stores 300 Matter Capacity 300 Sight Range 16 Terrain Scan Density 10 Power Shielding 33 Evasion (%) 44 Item Schematics ----------------- None Robot Schematics ------------------ None Fabricated ------------ Nothing Alien Tech Used ----------------- None Achievements -------------- None Challenges ------------ None Game ------ Seed ThermalGravityFlightbrick Manual? 0 Play Time 00:10:53 Cumulative 9.1 hours Start 2024.04.24 @ 21:24:22 End 2024.04.24 @ 21:44:19 Sessions 1 Manual Loads 0 Difficulty Rogue Special Mode None Game No. 15 Rogue 15 Adventurer 0 Explorer 0 Win Type - Total 0 Types 0/0/0/0/0/0/0/0/0 Lore% 14 Gallery% 14 Achievement% 10 Wizard Run 0 Options --------- Layout 1 ASCII 0 Keyboard 1 Movement Arrows Keybinds 0 Fullscreen 2 Font 24/Smallcaps Map View 50x35 Zoom Use 0% Tactical HUD 1 Map Filters NONE Filters NONE Steam 1 RUN: eff61b29-ebae-4b48-b2d1-ae2b377a6072